{"text_format":"3","workbook":"xlsx","n_sheets":24,"sheets":["Summary","1200","1300","1400","1500","1600","1700","1800","2100","2200","2300","3100","3300","3400","5100","3500","5200","5400","5600","5700","5900","7300","8100","TRAINING"],"not_rendered":{"external_links":1,"defined_names":2},"read":"whole","date_system":"1900"}

{"sheet":"Summary","index":0,"n_rows":58,"n_cols":11,"rows_kept":58,"merged":[[3,1,4,10],[5,2,5,9],[6,2,6,9],[7,2,7,9],[8,2,8,9],[9,2,9,9],[10,2,10,9],[11,1,11,9],[12,2,12,9],[13,2,13,9],[14,2,14,9],[15,2,15,9],[16,2,16,9],[17,2,17,9],[18,2,18,9],[19,2,19,9],[20,2,20,9],[21,2,21,9],[22,2,22,9],[23,2,23,9],[24,2,24,9],[25,2,25,9],[26,2,26,9],[27,2,27,9],[28,2,28,9],[29,2,29,9],[30,2,30,9],[31,2,31,9],[32,2,32,9],[33,2,33,9],[34,1,34,9],[35,2,35,9],[36,2,36,9],[37,2,37,9],[38,2,38,9],[39,1,39,9],[40,2,40,9],[41,1,41,9],[42,2,42,9],[43,1,43,9],[44,1,44,9],[45,1,45,9],[46,1,46,9],[47,1,47,9],[48,1,48,9],[49,1,49,9],[50,1,50,9],[51,1,51,9],[52,2,52,9],[53,1,53,9],[54,2,54,9],[55,1,55,9]]}
[]
[]
[]
[null,"S U M M A R Y   O F   C O S T "]
[]
[null,"SECTION","DESCRIPTION",{"$nulls":7},"AMOUNT (ZAR)"]
[null,"SCHEDULE A","PRELIMINARY AND GENERAL"]
[]
[null,{"$f":"'[1]SCHEDULE A'!A3","v":1200},"GENERAL REQUIREMENTS AND PROVISIONS"]
[null,{"$f":"'[1]SCHEDULE A'!A60","v":1300},"CONTRACTOR'S ESTABLISHMENT ON SITE AND GENERAL OBLIGATIONS"]
[null,{"$f":"'[1]SCHEDULE A'!A117","v":1400},"HOUSING, OFFICES AND LABORATORIES FOR THE ENGINEER'S SITE PERSONNEL"]
[null,"TOTAL SCHEDULE A"]
[]
[null,"SCHEDULE B","ROADWORKS"]
[]
[null,{"$f":"'[1]SCHEDULE A'!A262","v":1500},"ACCOMMODATION OF TRAFFIC"]
[null,1600,"OVERHAUL"]
[null,{"$f":"'[1]SCHEDULE A'!A388","v":1700},"CLEARING AND GRUBBING"]
[null,1800,"DAYWORKS"]
[null,{"$f":"'[1]SCHEDULE A'!A572","v":2100},"DRAINS"]
[null,{"$f":"'[1]SCHEDULE A'!A680","v":2200},"PREFABRICATED CULVERTS"]
[null,{"$f":"'[1]SCHEDULE A'!A797","v":2300},"CONCRETE KERBING, CONCRETE CHANNELLING, CHUTES AND DOWNPIPES AND CONCRETE LININGS FOR OPEN DRAINS "]
[null,3100,"BORROW MATERIALS"]
[null,{"$f":"'[1]SCHEDULE A'!A1032","v":3300},"MASS EARTHWORKS"]
[null,{"$f":"'[1]SCHEDULE A'!A1086","v":3400},"PAVEMENT LAYERS OF GRAVEL MATERIALS"]
[null,{"$f":"'[1]SCHEDULE A'!A1152","v":3500},"STABILIZATION"]
[null,{"$f":"'[1]SCHEDULE A'!A1458","v":5100},"PITCHING, STONEWORK AND PROTECTION AGAINST EROSION "]
[null,5200,{"$f":"'5200'!C6","v":"GABIONS"}]
[null,{"$f":"'[1]SCHEDULE A'!A1580","v":5400},"GUARDRAILS "]
[null,{"$f":"'[1]SCHEDULE A'!A1643","v":5600},"ROAD SIGNS"]
[null,{"$f":"'[1]SCHEDULE A'!A1696","v":5700},"ROAD MARKINGS"]
[null,5900,"FINISHING THE ROAD AND ROAD RESERVES AND TREATING OLD ROADS"]
[null,7300,{"$f":"'7300'!C6","v":"CONCRETE BLOCK PAVING FOR ROADS"}]
[null,8100,"TESTING MATERIAL AND WORKMANSHIP"]
[null,"TOTAL SCHEDULE B"]
[]
[null,"SCHEDULE C","PROVISIONAL SUMS"]
[]
[null,"C1","PROVISION OF STRUCTURED TRAINING"]
[null,"TOTAL SCHEDULE C"]
[]
[null,"SUMMARY OF SCHEDULES"]
[]
[null,{"$f":"B7&\" \"&C7","v":"SCHEDULE A PRELIMINARY AND GENERAL"}]
[null,{"$f":"B14&\" \"&C14","v":"SCHEDULE B ROADWORKS"}]
[null,{"$f":"B37&\" \"&C37","v":"SCHEDULE C PROVISIONAL SUMS"}]
[null,"SUB-TOTAL"]
[]
[null,"Add 10% CPA (Contract Price Adjustment)"]
[null,"Add 10% CONTINGENCIES (The sum provided here is under the sole control of the engineer and may be "]
[null,"deducted in whole or part)"]
[null,"SUB-TOTAL"]
[]
[null,"15% Value Added Tax (VAT)"]
[]
[null,"TOTAL CONSTRUCTION COST"]
[]
[{"$nulls":6},"C2.2.1"]

{"sheet":"1200","index":1,"n_rows":58,"n_cols":7,"rows_kept":58,"merged":[[55,2,55,5]]}
[]
[null,"SCHEDULE A : GENERAL"]
[{"$nulls":6},"SECTION 1200"]
[null,"ITEM","DESCRIPTION","UNIT","QTY","RATE","AMOUNT"]
[]
[null,"1200","GENERAL REQUIREMENTS AND PROVISIONS"]
[]
[null,"B12.01","The contractor's obligations in respect of local and other"]
[null,null," labourers:"]
[]
[null,null,"(a) Utility services"]
[null,null,"(i) Relocation of services and payments to service owners","Prov Sum",{"v":1,"d":"1.00"},{"v":200000,"d":"R200,000.00"},{"$f":"E12*F12","v":{"v":200000,"d":"R200,000.00"}}]
[null,null,"(ii) Handling costs and profit in respect of sub-item B12.01(a)(i) above","%",{"v":10,"d":"10.00"},{"$f":"F12*E13%","v":{"v":20000,"d":"R20,000.00"}},{"$f":"F13","v":{"v":20000,"d":"R20,000.00"}}]
[]
[]
[null,"B12,03","Provision for Relocation/Protection of Services"]
[]
[null,null,"(a) Allow a provisional sum for existing services/ Eskom to be relocated and/or protected as ordered  by the engineer","Prov Sum",{"v":1,"d":"1.00"},{"v":600000,"d":"R600,000.00"},{"$f":"E18*F18","v":{"v":600000,"d":"R600,000.00"}}]
[]
[null,null,"(b) By the contractor (boundary walls and fences)","m",{"v":300,"d":"300.00"}]
[]
[null,null,"(c) Handling cost and profit in respect of subitem B12,03(a), B12,03(b)","%"]
[]
[null,"B12,04","Provision for a Community Liaison Officer"]
[]
[null,null,"(a) Provisional Sum for the payment of the Community Liaison Officer","Prov Sum",{"v":12,"d":"12.00"},{"v":8500,"d":"R8,500.00"},{"v":102000,"d":"R102,000.00"}]
[null,null,"(b) Handling costs and profit in respect of subitem B12,04(a)","%",{"v":10,"d":"10.00"},{"$f":"F26*E27%","v":{"v":850,"d":"R850.00"}},{"$f":"G26*0.1","v":{"v":10200,"d":"R10,200.00"}}]
[]
[null,null,"Provisional sum for the payment of the Community"]
[null,null,"Liaison Officer and PSC Members"]
[]
[null,null,"(a) Provisional Sum for PSC","Prov Sum",{"v":1,"d":"1.00"},{"v":30000,"d":"R30,000.00"},{"v":30000,"d":"R30,000.00"}]
[null,null,"(b) Handling costs and profit in respect of subitem above","%",{"v":10,"d":"10.00"},{"$f":"F32","v":{"v":30000,"d":"R30,000.00"}},{"$f":"G32*0.1","v":{"v":3000,"d":"R3,000.00"}}]
[]
[null,"B12,05","Health and Safety obligations"]
[null,null,"(a) Contractor's initial obligation in respect of the OHS Act and construction regulations","L/Sum",{"v":1,"d":"1.00"}]
[null,null,"(b) Contractor's Time related Obligations in respect of the OHS Act and construction regulations","Month",{"v":12,"d":"12.00"}]
[null,null,"(c) Special information signs","L/Sum",{"v":1,"d":"1.00"}]
[null,null,"(d) Handling costs and profit in respect of subitem B12,05(a)+(b)","%",{"$f":"G35+G38","v":0}]
[]
[null,"B12,06","Supply and Install Contract Notice boards as instructed by the Engineer (as per drawing)","No,",{"v":2,"d":"2.00"}]
[]
[null,"B12/C1.1","Submission of Health and Safety File","L/Sum",{"v":1,"d":"1.00"}]
[]
[null,"B12/C1.2","Site Supervision By Project Engineer"]
[]
[null,null,"(a)  Provisional Sum for Remunerarion of Employers Agent for Quality Control and Site Supervision","Prov.Sum",{"v":1,"d":"1.00"},{"v":350000,"d":"R350,000.00"},{"$f":"F47*E47","v":{"v":350000,"d":"R350,000.00"}}]
{"$rows_empty":8}
[null,1200,"TOTAL CARRIED TO SUMMARY"]
[]
[{"$nulls":3},"C2.2.2"]

{"sheet":"1300","index":2,"n_rows":65,"n_cols":7,"rows_kept":65,"merged":[[62,2,62,5]]}
[]
[null,"SCHEDULE A : GENERAL"]
[{"$nulls":6},"SECTION 1300"]
[null,"ITEM","DESCRIPTION","UNIT","QTY","RATE","AMOUNT"]
[]
[null,"1300","CONTRACTORS ESTABLISHMENT ON SITE AND GENERAL OBLIGATIONS"]
[]
[null,13.01,"The contractors general obligations"]
[]
[null,"(a)","Fixed obligations","L/sum",{"v":1,"d":"1.00"}]
[]
[null,"(b)","Value related obligations","L/sum",{"v":1,"d":"1.00"}]
[]
[null,"(c)","Time related obligations","Month",{"v":1,"d":"1.00"}]
[]
[null,"B13.01","(d)Health and Safety obligations"]
[null,null,"(e) Execution of the works ","Month",{"v":12,"d":"12.00"}]
[null,null,"(f) Environmental obligation ","Month",{"$f":"E17","v":{"v":12,"d":"12.00"}}]
[null,null,"(h) Security on site ","Month",{"$f":"E18","v":{"v":12,"d":"12.00"}}]
[null,null,"NB: The combined tendered total for subitem (a)"]
[null,null,"(b) and (c) should not exceed 15% of the tender "]
[null,null,"sum, excluding VAT, (refer to form H; "]
[null,null,"CONTRACTORS ESTABLISHMENT ON SITE)"]
[]
[null,"B13.02","Contractor's initial obligations in respect of the Occupational ","L/sum",{"v":1,"d":"1.00"}]
[null,null,"Health and Safety Act and Construction Regulations."]
[]
[null,"(a)","Preparation of Health & Safety Plan","L/sum",{"v":1,"d":"1.00"}]
[]
[null,"(b)","Compilation of a Risk Assessment prior to "]
[null,null,"commencement of Construction.","L/sum",{"v":1,"d":"1.00"}]
[]
[null,"(c)","Health & safety induction training of employees","L/sum",{"v":1,"d":"1.00"}]
[]
[null,"(d)","Compilation and keeping up with date the Health & "]
[null,null,"Safety file which shall include all documentation required"]
[null,null,"in terms of the Act including COVID-19. Implementation "]
[null,null,"of the health  and Safety plan over the entire construction ","Month",{"v":1,"d":"1.00"}]
[null,null,"period"]
[]
[null,"(e)"," Handling cost and profit in respect of subitem B13.02 (a)","%",{"$f":"G38","v":0}]
[]
[null,"B13.03","Contractor's time-related obligations in respect of the "]
[null,null,"Occupational Health and Safety Act and Construction "]
[null,null,"Regulations including COVID-19 compliance as promulgated.","month",{"$f":"E38","v":{"v":1,"d":"1.00"}}]
[]
[null,"B13.04","Submission of the Health and Safety File, and obtaining "]
[null,null,"the construction permit","L/sum",{"v":1,"d":"1.00"}]
[]
[null,null,"The combined total tendered for Items B13.02, B13.03 "]
[null,null,"and B13.04 shall not be less than 1% of the total tendered "]
[null,null,"sum, excluding VAT."]
[]
[null,"13/22.26","Hand excavation to determine the position of existing services","m3",{"v":150,"d":"150.00"}]
{"$rows_empty":8}
[null,1300,"TOTAL CARRIED TO SUMMARY"]
[]
[{"$nulls":3},"C2.2.3"]

{"sheet":"1400","index":3,"n_rows":59,"n_cols":7,"rows_kept":59,"merged":[[56,2,56,5]]}
[]
[null,"SCHEDULE A : GENERAL"]
[{"$nulls":6},"SECTION 1400"]
[null,"ITEM","DESCRIPTION","UNIT","QTY","RATE","AMOUNT"]
[]
[null,"1400","HOUSING, OFFICES AND LABORATORIES FOR THE ENGINEER'S SITE PERSONNEL"]
[]
[null,14.01,"Office and laboratory accommodation:"]
[null,"(a)","Offices (interior floor space only)","m²",{"v":45,"d":"45.00"}]
[null,"(b)","Open concrete working floors, 150mm thick"]
[null,"(c)","Roofs over open concrete working floors"]
[null,null,"(e) Ablution units","m²",{"v":9,"d":"9.00"}]
[null,"(d)","Stores","m²",{"v":18,"d":"18.00"}]
[null,null,"(f) Kitchen Unit"]
[]
[null,14.02,"Office furniture:"]
[null,null,"(a) Chairs","No",{"v":20,"d":"20.00"}]
[null,null,"(d) Desks, complete with drawers and locks","No",{"v":5,"d":"5.00"}]
[null,null,"(f) Conference tables","No",{"v":1,"d":"1.00"}]
[]
[null,14.03,"Office and laboratory fittings, installations and equipment:"]
[null,null,"(a) Items measured by number:"]
[null,null,"(i) 220/250 volt power points","No",{"v":8,"d":"8.00"}]
[null,null,"(ii) Double 80 watt fluorescent-light fittings complete with ballast and tubes","No",{"v":3,"d":"3.00"}]
[null,null,"(iii) Single incandescent-light fittings complete with 100-watt globes","No",{"v":2,"d":"2.00"}]
[null,null,"(xiv) General-purpose steel cupboards with shelves","No",{"v":4,"d":"4.00"}]
[]
[null,"B14,03","(xix) Rain gauge","No",{"v":1,"d":"1.00"}]
[null,null,"(xx) Maximum and minimum thermometer","No",{"v":1,"d":"1.00"}]
[]
[null,"( c)","Items measured by area:"]
[null,"(viii)","Notice boards as specified","no",{"v":2,"d":"2.00"}]
[]
[null,14.03,"Telecommunications System"]
[null,null,"(a) Provision of telephone service, including the cost of calls in connection with contract administration and telephone rental","L/ Sum",{"v":1,"d":"1.00"}]
[null,null,"(b) Handling costs and profit in respect of sub-item 14,03(a) above","%"]
[null,null,"( c) Provision of Laptop for the use of Engineer","L/Sum"]
[null,null,"(d) Handling costs and profit in respect of sub-item 14,03(c) above"]
[]
[null,14.04,"Car ports as specified at offices and laboratory buildings","No",{"v":5,"d":"5.00"}]
[]
[null,14.07,"Rented, hotel and other accommodation"]
[null,null,"(a) Provisional sum for providing rented housing, hotel or other acomodation as described in subsubclause 14,03 (c)(ii)","L/ Sum",{"v":1,"d":"1.00"}]
[null,null,"(b) Handling costs and profit in respect of subitem 14,07(a)","%"]
[]
[null,14.08,"Services:"]
[null,null,"(a) Services at offices:"]
[null,null,"(i) Fixed costs","Lump Sum",{"v":1,"d":"1.00"}]
[null,null,"(ii) Running costs","month",{"v":6,"d":"6.00"}]
[]
[null,14.1,"Provision of photostat facilities","month",{"v":6,"d":"6.00"}]
[]
[null,"B14.12","Independent  Laboratory"]
[null,null,"a)     Provision for the use of an independent Laboratory for the Engineer*","Prov Sum",{"v":1,"d":"1.00"},{"v":150000,"d":"R150,000.00"},{"$f":"F54*E54","v":{"v":150000,"d":"R150,000.00"}}]
[null,null,"b)     Handling Cost and profit in respect of item B14.12(a)",{"$f":"D44","v":"%"},{"v":10,"d":"10.00"},{"$f":"F54","v":{"v":150000,"d":"R150,000.00"}},{"$f":"F55*E55%","v":{"v":15000,"d":"R15,000.00"}}]
[]
[null,1400,"TOTAL CARRIED TO SUMMARY"]
[]
[{"$nulls":3},"C2.2.4"]

{"sheet":"1500","index":4,"n_rows":132,"n_cols":7,"rows_kept":132,"merged":[[62,2,62,5],[129,2,129,5]]}
[]
[null,"SCHEDULE B : ROADWORKS"]
[{"$nulls":6},"SECTION 1500"]
[null,"ITEM","DESCRIPTION","UNIT","QTY","RATE","AMOUNT"]
[]
[null,"1500","ACCOMMODATION OF TRAFFIC"]
[]
[null,15.01,"Accomodating traffic and maintaining tempory deviations ","km",{"v":1.2,"d":"1.20"}]
[null,null,"(Including Watering of By Pass/Deviation)"]
[null,15.02,"Earthworks for temporary deviations:"]
[]
[null,"(a)","Shaping of temporary deviatons","km",{"v":1.2,"d":"1.20"}]
[]
[null,null,"(b) Cut and borrow to fill","m3",{"$f":"0.15*1200*4","v":{"v":720,"d":"720.00"}}]
[]
[null,null,"( c) Cut to spoil","m3",{"v":360,"d":"360.00"}]
[]
[null,15.03,"Temporary traffic control facilies :","No",{"v":6,"d":"6.00"}]
[]
[null,"(a)","Flagmen","Man days",{"$f":"365*1.2","v":{"v":438,"d":"438.00"}}]
[]
[null,"(b)","Portable STOP & GO-RY signs","No",{"v":4,"d":"4.00"}]
[]
[null,"(c) ","Box culverts up to and including 1.5 m vertical dimension","No",{"v":10,"d":"10.00"}]
[]
[null,"(d)","Box culverts exceeding 1.5 m vertical dimension","No.",{"v":10,"d":"10.00"}]
[]
[null,"(e)","Road signs, R- and TR series, (1200 mm dia)"]
[null,null,"(i)  1200mm","No",{"v":9,"d":"9.00"}]
[null,null,"(ii)  1500mm","No",{"v":9,"d":"9.00"}]
[]
[null,null,"(d) Amber flicker lights","No",{"v":4,"d":"4.00"}]
[]
[null,"(f)","Road signs, TW series (1500 mm sides)"]
[null,null,"(i)  1200mm","No",{"v":2,"d":"2.00"}]
[null,null,"(ii)  2400mm x 400mm","No",{"v":2,"d":"2.00"}]
[]
[null,"(g)","Road signs, STW,-DTWG,TGS-, and TG series"]
[null,null,"(excluding delineators and barricades)"]
[null,null,"(i)  1200mm","No",{"v":2,"d":"2.00"}]
[null,null,"(ii)  2400mm x 400mm","No",{"v":2,"d":"2.00"}]
[]
[null,"(h)","Delineators (DTG50J)","No",{"v":10,"d":"10.00"}]
[]
[null,"(ii)","Mounted back to back (1200 mm x 150 mm)","No",{"v":450,"d":"450.00"}]
[]
[null,"(iii)","Moveable barricades/road signs combination","No",{"v":8,"d":"8.00"}]
[]
[null,"(j)","Traffic cones (750 mm high)","No",{"v":30,"d":"30.00"}]
[]
[null,"(n)","Provision of high visibility safety jackets","No",{"v":10,"d":"10.00"}]
[]
[null,"B15,11","Temporary traffic-control facilities"]
[]
[null,"(a)","Provision, first erection on site and final removal","No",{"v":2,"d":"2.00"}]
[]
[null,"B15.14","Amber flashing lights mounted on signs","no",{"v":4,"d":"4.00"}]
[]
[null,"15/34.01","Pavement layers constructed from gravel taken from cut or borrow borrow including free-haul up to 1,0 km:"]
[]
[null,"","(b) Gravel shoulders compacted to:"]
[null,"","(ii) 93% of modified AASHTO density for a compacted layer thickness of 150mm","m³",{"$f":"1670*6*0.15","v":{"v":1503,"d":"1,503.00"}}]
[null,1500,"CARRIED FORWARD"]
[{"$nulls":3},"C2.2.5"]
[]
[{"$nulls":6},"SECTION 1500"]
[null,"ITEM","DESCRIPTION","UNIT","QTY","RATE","AMOUNT"]
[]
[]
[null,1500,"Brought forward"]
[]
[]
[null,15.07,"Blading by a road grader of:"]
[null,null,"(a) Temporary deviations","km-pass",1.67]
[null,null,"(b) Existing roads used as temporary deviations","km-pass",1.67]
[]
[null,"B15,12","Temporary culverts"]
[null,null,"(a) Provision and laying of temporary prefabricated culverts"]
[null,null,"complete:"]
[null,null,"    (i) Type SC pipe D-load pipes with ogee joints on class D "]
[null,null,"             bedding"]
[null,null,"        (1) 600mm dia","m",1613]
[null,null,"(b) Re-use of prefabricated culverts complete:"]
[null,null,"    (i) Type SC pipe D-load pipes with ogee joints on class D "]
[null,null,"         bedding","m",10]
[null,null,"        (1) 600mm dia"]
[]
[null,"B15,14","The provision and maintenance of rotating lights, etc for the "]
[null,null,"use of the Engineer and his staff"]
[null,null,"(a) Rotating lights","No",2]
[null,null,"(b) Safety vests","No",4]
{"$rows_empty":38}
[null,1500,"CARRIED TO SUMMARY"]
[]
[{"$nulls":3},"C2.2.6"]

{"sheet":"1600","index":5,"n_rows":67,"n_cols":7,"rows_kept":67,"merged":[[64,2,64,5]]}
[]
[null,"SCHEDULE B : ROADWORKS"]
[{"$nulls":6},"SECTION 1600"]
[null,"ITEM","DESCRIPTION","UNIT","QTY","RATE","AMOUNT"]
[]
[null,"1600","OVERHAUL"]
[]
[null,"16.01","Overhaul on material hauled in excess of a "]
[null,null,"free-haul distance of 0,5 km, for haul up to"]
[null,null,"or through 1,0 km (restricted overhaul)","m³",{"v":750,"d":"750.00"}]
[]
[]
[null,"16.02","Overhaul on material hauled in excess of "]
[null,null,"5,0 km (ordinary overhaul)","m³-km",0.75]
{"$rows_empty":50}
[null,1600,"CARRIED TO SUMMARY"]
[]
[{"$nulls":3},"C2.2.7"]

{"sheet":"1700","index":6,"n_rows":68,"n_cols":7,"rows_kept":68,"merged":[[65,2,65,5]]}
[]
[null,"SCHEDULE B : ROADWORKS"]
[{"$nulls":6},"SECTION 1700"]
[null,"ITEM","DESCRIPTION","UNIT","QTY","RATE","AMOUNT"]
[]
[null,"1700","CLEARING AND GRUBBING"]
[]
[null,17.01,"Clearing and grubbing within the road reserve","ha",{"v":0.1,"d":"0.10"}]
[]
[null,17.02,"Removal and grubbing of large trees and tree stumps"," "," "]
[]
[null,"(a)","Grith exceeding 1m up to and including 2m","no",{"v":5,"d":"5.00"}]
[]
[null,null,"(b) Girth exceeding 2 m up to and including 3 m","No.",{"v":2,"d":"2.00"}]
[]
[null,null,"Girth larger than 3m up to andincluding 4m","No.",{"v":4,"d":"4.00"}]
{"$rows_empty":49}
[null,1700,"CARRIED TO SUMMARY"]
[]
[{"$nulls":3},"C2.2.8"]

{"sheet":"1800","index":7,"n_rows":64,"n_cols":7,"rows_kept":64,"merged":[[61,2,61,5]]}
[]
[null,"SCHEDULE B : ROADWORKS"]
[{"$nulls":6},"SECTION 1800"]
[null,"ITEM","DESCRIPTION","UNIT","QTY","RATE","AMOUNT"]
[]
[null,"1800","DAYWORKS"]
[]
[null,null,"NOTE:"]
[null,null,"Dayworks are executed at the instruction of the Engineer only,"]
[null,null,"Supervision of dayworks is not payable under this section and "]
[null,null,"is deemed to be included under Section 1200"]
[]
[null,"B18,01","Labourers:"]
[null,null,"(i) Unskilled","hr",{"v":250,"d":"250.00"}]
[null,null,"(ii) Semi-skilled","hr",{"v":250,"d":"250.00"}]
[null,null,"(iii) Skilled","hr",{"v":250,"d":"250.00"}]
[null,null,"(iv) Ganger","hr",{"v":125,"d":"125.00"}]
[null,null,"(v) Flagmen","hr",{"v":125,"d":"125.00"}]
[]
[null,"B18,02","Foreman","hr",{"v":125,"d":"125.00"}]
[]
[null,"B18,03","Tipper trucks:"]
[null,null,"(i) 3 - 5 ton","hr",{"v":125,"d":"125.00"}]
[null,null,"(ii) 5,1 - 10 ton","hr",{"v":125,"d":"125.00"}]
[]
[null,"B18,04","Loader (0,5m³)","hr",{"v":125,"d":"125.00"}]
[]
[null,"B18,05","Grader (CAT 140K or similar)","hr",{"v":125,"d":"125.00"}]
[]
[null,"B18,06","LDV","hr",{"v":125,"d":"125.00"}]
[]
[null,"B18,07","Compaction Rollers:","hr",{"v":125,"d":"125.00"}]
[null,null,"(i) Vibrator roller","hr",{"v":125,"d":"125.00"}]
[null,null,"(ii) Tamping roller","hr",{"v":125,"d":"125.00"}]
[null,null,"(iii) Grid roller","hr",{"v":125,"d":"125.00"}]
[]
[null,"B18,08","Hand Controlled Compactors"]
[null,null,"(i) Pedestrian roller (Bomag BW90 or similar)","hr",{"v":125,"d":"125.00"}]
[null,null,"(ii) Vibratory plate","hr",{"v":125,"d":"125.00"}]
[null,null,"(iii) Rammers","hr",{"v":125,"d":"125.00"}]
[]
[null,"B18,09","Water truck (min 10 000 l )","hr",{"v":125,"d":"125.00"}]
[]
[null,"B18,10","Dozer (D7 or similar)","hr",{"v":125,"d":"125.00"}]
{"$rows_empty":17}
[null,1800,"CARRIED TO SUMMARY"]
[]
[{"$nulls":3},"C2.2.9"]

{"sheet":"2100","index":8,"n_rows":64,"n_cols":7,"rows_kept":64,"merged":[[61,2,61,5]]}
[]
[null,"SCHEDULE B : ROADWORKS"]
[{"$nulls":6},"SECTION 2100"]
[null,"ITEM","DESCRIPTION","UNIT","QTY","RATE","AMOUNT"]
[]
[null,"2100","DRAINS"]
[]
[null,"B21.01","Excavation for open drains:"]
[]
[null,"","(a)  Excavating soft material situated within the following depth ranges below the surface level:"]
[]
[null,"","(i)  0m up to 1,5m","m³",{"v":400,"d":"400.00"}]
[null,null,"(ii) Exceeding 1,5 m up to 3,0 m","m³",0]
[]
[null,"","(b)  Extra over subitem 21,01(a) for excavation in (b)  hard material, irrespective of depth","m³",{"v":60,"d":"60.00"}]
[]
[null,21.02,"Clearing and shaping of existing open drains","m³",{"v":30,"d":"30.00"}]
[]
[null,21.03,"Excavation for subsoil drainage systems:"]
[null,"(a)","Excavating soft material situated within the"]
[null,null,"following depth ranges below the surface level :"]
[null,"(i)","0m up to 1,5m","m³",{"v":30,"d":"30.00"}]
[null,"(b)","Extra over subitem 21,01(a) for excavation in hard material,"]
[null,null,"irrespective of depth","m³",{"v":15,"d":"15.00"}]
[]
[null,21.06,"Natural permeable material in subsoil drainage system"]
[null,null,"(crushed-stone):"]
[null,"(b)","Crushed-stone obtained from commercial sources "]
[null,null,"(no-overhaul):"]
[null,"(i)","Fine grade stone (13,2mm nominal size aggregate)","m³",{"v":30,"d":"30.00"}]
[]
[null,21.08,"Pipes in subsurface drainage systems:"]
[null,"(b) ","Unplasticized PVC pipes and fittings, normal duty complete"]
[null,null,"with couplings:"]
[null,"(i)","110mm diameter (perforated)","m",{"v":100,"d":"100.00"}]
[]
[null,21.1,"Synthetic-fibre filter fabric:"]
[null,"(a)","Non-woven needle punched type:"]
[null,"(i)","\"Kaymat U24\" or approved  equivalent","m²",{"$f":"200*0.5","v":{"v":100,"d":"100.00"}}]
[]
[null,21.12,"Concrete outlet structures, manhole boxes, junction boxes "]
[null,null,"cleaning eyes for subsoil drainage systems:"]
[]
[null,"(a)","Outlet structures","No,",{"v":2,"d":"2.00"}]
[null," (b) ","Manhole boxes","No,",{"v":15,"d":"15.00"}]
[null,"(c)","Junction boxes","No",{"v":3,"d":"3.00"}]
[]
[null,21.13,"Concrete caps for sub-soil drain pipes","No",{"v":5,"d":"5.00"}]
[]
[null,21.15,"Overhaul for material hauled in excess of 1,0km free-"]
[null,null,"haul (normal overhaul)","m³-km",{"v":1.5,"d":"1.50"}]
[]
[null,21.16,"Backfilling existing eroded side drains","No",{"v":12,"d":"12.00"}]
[]
[null,21.17,"Test flushing of pipe subsoil drains","No",{"v":5,"d":"5.00"}]
[]
[null,"B21.22","Subsoil outlet marker board","No",{"v":5,"d":"5.00"}]
[]
[null,"B21.23","Break into existing drainage structures and install subsoil drain pipe ","No",{"v":5,"d":"5.00"}]
[]
[]
[null,2100,"CARRIED TO SUMMARY"]
[]
[{"$nulls":3},"C2.2.10"]

{"sheet":"2200","index":9,"n_rows":67,"n_cols":7,"rows_kept":67,"merged":[[64,2,64,5]]}
[]
[null,"SCHEDULE B : ROADWORKS"]
[{"$nulls":6},"SECTION 2200"]
[null,"ITEM","DESCRIPTION","UNIT","QTY","RATE","AMOUNT"]
[]
[null,"2200","PREFABRICATED CULVERTS"]
[]
[null,22.01,"Excavation :"]
[null,"(a)","Excavating soft material situated within the"," "," "]
[null,null,"following depth ranges below the surface level :"]
[null,"(i)","0m up to 1,5m","m³",{"v":500,"d":"500.00"}]
[null,"(ii)","Exceeding 1,5 m up to 3,0 m","m³",{"v":4080,"d":"4,080.00"}]
[]
[null,22.02,"Backfilling :"]
[null,"(a)","Using the excavated material :","m³",{"$f":"E12+E11","v":{"v":4580,"d":"4,580.00"}}]
[null,"(b)","Using imported selected material :","m³",{"v":200,"d":"200.00"}]
[null," "," "," "]
[null,22.03,"Concrete pipe culverts:"]
[null,"(b)","On class B bedding "]
[null,"(i)","Class 50 D pipes, 600mm diameter","m ",{"v":1200,"d":"1,200.00"}]
[null,"(ii)","Class 100D, 750mm diameter*","m",0]
[]
[null,22.05,"Portal and rectangular culverts :"]
[null,"(b)","With prefabricated floor slabs, 1,2m x 1,2m (RP) Type "]
[null," "," class 100S"]
[null,null,"   (i) 1500mm X 1500mm","m",{"v":40,"d":"40.00"}]
[]
[]
[null,22.07,"Cast in situ concrete and formwork :"]
[null,"(b)","In floor slabs for portal culverts including formwork"]
[null,null,"joints and class U2 surface finish (class 30/19 concrete)","m³",{"$f":"100*0.15*1.2","v":{"v":18,"d":"18.00"}}]
[null,"(c)","In inlet and outlet structures, excluding formwork but"]
[null,null,"including class U2 surface finish (class 30/19 concrete)","m³",{"$f":"E27*0.15*1.5","v":0}]
[]
[null,22.1,"Steel reinforcement"]
[null,null,"(a) Mild steel bars","t",{"v":0.5,"d":"0.50"}]
[]
[null,22.12,"Removing existing concrete"]
[null,"(a)","Plain concrete","m³",{"v":25,"d":"25.00"}]
[null,"(b)","Reinforced concrete","m³",{"v":50,"d":"50.00"}]
[]
[null,22.17,"Manholes, catchpits, precast inlet and outlet structures"]
[null,null,"complete:"]
[null,null,"(a) manholes boxes type as indicated on drawings","No.",{"v":10,"d":"10.00"}]
[null,null,"(b) Catchpit type as indicated on drawings","No.",{"v":8,"d":"8.00"}]
[]
[null,22.18,"Brickwork (concrete bricks)"]
[null,"(b)","230 mm thick","m²",{"v":100,"d":"100.00"}]
[]
[null,22.19,"Plaster","m³",{"v":240,"d":"240.00"}]
[]
[null,"22/64,01","Cast in situ concrete:"]
[null,"(a)","Class 15/19 Mass concrete","m³",{"v":50,"d":"50.00"}]
{"$rows_empty":11}
[null,2200,"CARRIED TO SUMMARY"]
[]
[{"$nulls":3},"C2.2.11"]

{"sheet":"2300","index":10,"n_rows":67,"n_cols":7,"rows_kept":67,"merged":[[64,2,64,5]]}
[]
[null,"SCHEDULE B : ROADWORKS"]
[{"$nulls":6},"SECTION 2300"]
[null,"ITEM","DESCRIPTION","UNIT","QTY","RATE","AMOUNT"]
[]
[null,"2300","CONCRETE KERBING, CHANNELING, CHUTES, "]
[null,null,"DOWNPIPES AND LININGS FOR OPEN DRAINS"]
[]
[null,23.01,"Concrete Kerbing:"]
[null,"(a)","Prefabricated mountable kerb, SABS 927 Fig 8c, as shown "]
[null,null,"on the drawings","m",{"v":1800,"d":"1,800.00"}]
[null,"(b)","Prefabricated barrier kerb, SABS 927 Fig 3, as shown "]
[null,null,"on the drawings","m",{"v":1800,"d":"1,800.00"}]
[null,"(c )","Prefabricated barrier kerb, SABS 927 Fig 10, as shown "]
[null,null,"on the drawings","m",{"v":600,"d":"600.00"}]
[]
[null,"(b)","300 mm x 200 mm cast in situ class 25/19  concrete edge"]
[null,null,"beam, as shown on the drawings*","m",{"v":1000,"d":"1,000.00"}]
[]
[null,23.02,"Concrete kerbing-chanelling combination"]
[null,"(a)","Type A in situ cast side drain, class 25/19 concrete","m3",{"v":30,"d":"30.00"}]
[]
[null,"(b)","150mm thick concrete drift, class 25/19 concrete","m3",{"v":10,"d":"10.00"}]
[]
[null,"23.07","Trimming of excavations for concrete-lined open drains:"]
[]
[null,"(a)","In soft material","m²",{"v":120,"d":"120.00"}]
[null,"(b)","In hard material","m²",{"v":40,"d":"40.00"}]
[]
[null,"23.08","Concrete lining for open drains:"]
[]
[null,"(a)","Cast in situ class 15/19 concrete lining in v-drains*","m³",{"v":300,"d":"300.00"}]
[]
[null,"(b)","Class U2 surface finish to cast in-situ concrete in open lined "]
[null,null,"drains*","m²",{"v":840,"d":"840.00"}]
[]
[null,"23.09","Sealed joints in concrete linings of open drains","m",{"v":100,"d":"100.00"}]
[null,null,"(description of type with reference to drawing"]
[]
[null,{"v":23.1,"d":"23.10"},"Steel reinforcing:"]
[null,"(c)","Welded steel fabric (Ref 395)","kg",{"v":1560,"d":"1,560.00"}]
[]
[null,"23.13","Polyethylene sheeting (0,15 mm thick) for concrete-lined "]
[null,null,"open drains","m²",{"v":840,"d":"840.00"}]
{"$rows_empty":20}
[null,2300,"CARRIED TO SUMMARY"]
[]
[{"$nulls":3},"C2.2.12"]

{"sheet":"3100","index":11,"n_rows":67,"n_cols":7,"rows_kept":67,"merged":[[64,2,64,5]]}
[]
[null,"SCHEDULE B : ROADWORKS"]
[{"$nulls":6},"SECTION 3100"]
[null,"ITEM","DESCRIPTION","UNIT","QTY","RATE","AMOUNT"]
[]
[null,"3100","BORROW MATERIALS"]
[null,null,"DOWNPIPES AND LININGS FOR OPEN DRAINS"]
[]
[null,31.01,"Excess overburden","m³",{"v":260,"d":"260.00"}]
[]
[null,31.03,"Finishing - off borrow areas in:"]
[null,null,"(b) Intermediate material","ha",{"v":1,"d":"1.00"}]
[]
[null,null,"(c ) Soft material","ha",{"v":1,"d":"1.00"}]
{"$rows_empty":50}
[null,3100,"CARRIED TO SUMMARY"]
[]
[{"$nulls":3},"C2.2.13"]

{"sheet":"3300","index":12,"n_rows":65,"n_cols":7,"rows_kept":65,"merged":[[62,2,62,5]]}
[]
[null,"SCHEDULE B : ROADWORKS"]
[{"$nulls":6},"SECTION 3300"]
[null,"ITEM","DESCRIPTION","UNIT","QTY","RATE","AMOUNT"]
[]
[null,"3300","MASS EARTHWORKS"]
[]
[null,33.04,"Cut to spoil, including free-haul up to 0,5km,"]
[null,null,"Material obtained from:"]
[]
[null,"(a)","Soft excavation","m³",{"v":8160,"d":"8,160.00"}]
[]
[null,"(b)","Intermediate excavation","m³",{"v":1000,"d":"1,000.00"}]
[]
[null,"(c)","Hard excavation","m³",{"v":1000,"d":"1,000.00"}]
[]
[null,"(d)","Boulder excavation class A","m³",{"v":30,"d":"30.00"}]
[]
[null,"(e)","Boulder excavation class B","m³",{"v":30,"d":"30.00"}]
[]
[null," 33.10","Roadbed preparation and the compaction of material:"]
[]
[null,"(a)","Compaction to 90% of modified AASHTO density","m3",{"v":2500,"d":"2,500.00"}]
[]
[null," 33.11","Three-roller-passes compaction:"]
[]
[null,"(a)","Vibratory roller","m²",{"v":15300,"d":"15,300.00"}]
[]
[null,"(b)","Oscillatory roller","m²",{"v":15300,"d":"15,300.00"}]
[]
[null,"(c)","Grid roller","m²",{"v":15300,"d":"15,300.00"}]
[]
[null,"(d)","Tamping roller","m²",{"v":15300,"d":"15,300.00"}]
[]
[null,33.12,"Insitu treatment of road bed"]
[]
[null,"(a)","In situ treatment by blasting (chemically)","m³",{"v":60,"d":"60.00"}]
[]
[null,33.13,"Finish-off cut and fill slopes, medians and interchange"," "]
[null,null,"areas:"]
[]
[null,"(a)","Cut slopes","m²",{"$f":"1000*1.5","v":{"v":1500,"d":"1,500.00"}}]
[]
[null,"(b)","Fill slopes","m²",{"v":1500,"d":"1,500.00"}]
[]
[null,"33/16,02","Overhaul on material hauled in excess of 1,0km (ordinary"]
[null,null,"overhaul )","m³-km",{"v":260,"d":"260.00"}]
[]
[null,"B33,20","Reshaping the road formation with material obtained from the road reserve and compacted to 90% of modified AASHTO density","m³",{"v":2500,"d":"2,500.00"}]
{"$rows_empty":13}
[null,3300,"CARRIED TO SUMMARY"]
[]
[{"$nulls":3},"C2.2.14"]

{"sheet":"3400","index":13,"n_rows":67,"n_cols":7,"rows_kept":67,"merged":[[64,2,64,5]]}
[]
[null,"SCHEDULE B : ROADWORKS"]
[{"$nulls":6},"SECTION 3400"]
[null,"ITEM","DESCRIPTION","UNIT","QTY","RATE","AMOUNT"]
[]
[null,"3400","PAVEMENT LAYERS OF GRAVEL MATERIAL"]
[]
[null,"B34.01","Pavement  Layers constructed from gravel taken from "]
[null,null,"commercial , private of other non-commercial suppliers."]
[]
[null,null,"(c ) Gravel subbase material (G5) compacted to:"]
[null,null,"95% of modified AASHTO density for a compacted layer "]
[null,null,"thickness of 150mm","m³",{"v":2500,"d":"2,500.00"}]
[]
[null,null,"(d) Base course material stabilized (C3)"]
[null,null,"97% of modified AASHTO density for a compacted layer"]
[null,null,"thickness of 150 mm","m³",{"v":2500,"d":"2,500.00"}]
[]
[null,34.03,"Pavement  Layers constructed from gravel taken from "]
[null,null,"borrow pits or similar approved"]
[]
[null,null,"(a) Sub-grade material G6 or better "]
[null,null,"93% of modified AASHTO density for a compacted layer"]
[null,null,"thickness of 150 mm","m³",{"v":2500,"d":"2,500.00"}]
[]
[null,34.04,"Cost of sampling and material testing","Prov Sum",{"v":1,"d":"1.00"},{"v":20000,"d":"R20,000.00"},{"$f":"F26*E26","v":{"v":20000,"d":"R20,000.00"}}]
[]
[null,34.05,"Handling cost and profit in respect of item 34,05","%",{"v":10,"d":"10.00"},{"$f":"F26","v":{"v":20000,"d":"R20,000.00"}},{"$f":"F28*E28%","v":{"v":2000,"d":"R2,000.00"}}]
{"$rows_empty":36}
[null,3400,"CARRIED TO SUMMARY"]
[]
[{"$nulls":3},"C2.2.15"]

{"sheet":"5100","index":14,"n_rows":67,"n_cols":7,"rows_kept":67,"merged":[[64,2,64,5]]}
[]
[null,"SCHEDULE B : ROADWORKS"]
[{"$nulls":6},"SECTION 5100"]
[null,"ITEM","DESCRIPTION","UNIT","QTY","RATE","AMOUNT"]
[]
[null,"5100","PITCHING, STONEWORK AND PROTECTION"]
[null,null,"AGAINST EROSION"]
[]
[null,51.01,"Stone pitching"]
[]
[null,null,"(b) Grouted stone pitching 150mm thinkness","m3",{"v":40,"d":"40.00"}]
{"$rows_empty":53}
[null,5100,"CARRIED TO SUMMARY"]
[]
[{"$nulls":3},"C2.2.17"]

{"sheet":"3500","index":15,"n_rows":67,"n_cols":7,"rows_kept":67,"merged":[[64,2,64,5]]}
[]
[null,"SCHEDULE B : ROADWORKS"]
[{"$nulls":6},"SECTION 3500"]
[null,"ITEM","DESCRIPTION","UNIT","QTY","RATE","AMOUNT"]
[]
[null,"3500","STABILIZATION"]
[]
[null,35.01,"Chemical stabilization extra over unstabilized compacted"]
[null,null,"layers :"]
[]
[null,"(a)","Gravel base, 150mm thick","m³",{"$f":"'3400'!E17","v":{"v":2500,"d":"2,500.00"}}]
[]
[null,35.02,"Chemical stabilizing agent:"]
[]
[null,"(a)","Ordinary portland cement @ 3%","t",{"v":140,"d":"140.00"}]
[]
[null,35.04,"Provision and application of water for curing","kl",{"v":375,"d":"375.00"}]
[]
[null,null,"Trial section for a chemically stabilised layer","m³",{"$f":"10*0.5*0.5*0.2","v":{"v":0.5,"d":"0.50"}}]
[]
[null,null,"Mechanical modification","m³",{"v":150,"d":"150.00"},null,"Rate Only"]
{"$rows_empty":43}
[null,3500,"CARRIED TO SUMMARY"]
[]
[{"$nulls":3},"C2.2.16"]

{"sheet":"5200","index":16,"n_rows":67,"n_cols":7,"rows_kept":67,"merged":[[64,2,64,5]]}
[]
[null,"SCHEDULE B : ROADWORKS"]
[{"$nulls":6},"SECTION 5200"]
[null,"ITEM","DESCRIPTION","UNIT","QTY","RATE","AMOUNT"]
[]
[null,"5200","GABIONS"]
[]
[null,52.01,"Foundation trench excavation and backfilling"]
[]
[null,null,"(a) in all classes of material","m3",{"v":20,"d":"20.00"}]
[]
[null,52.02,"Surface preparation for bedding the gabions","m²",{"v":20,"d":"20.00"}]
[]
[null,null,"Gabions:"]
[]
[null,null,"(a) Galvanised gabion boxes (dimensions of box, nominal "]
[null,null,"diameter of mesh and mesh size)"]
[]
[null,"(i)","(2m x 1m x 1m) with 80 x 100 x 2,7 mm mesh","m3",{"v":15,"d":"15.00"}]
[]
[null,"(ii)","(3m/4m x 1m x 1m) with 80 x 100 x 2,7 mm class A mesh","m3",{"v":15,"d":"15.00"}]
[]
[null,null,"(b) Galvinized gabion reno mattresses,"]
[]
[null,"(i)","2,0m x 1,0m x 0,3m hexagonal woevn mesh with aperture of "]
[null,null,"80mm x 100mm mesh and diaphrams at 1,0m centres and 2,7"]
[null,null,"mm dia mesh wire","m3",{"v":25,"d":"25.00"}]
[]
[null,"52.04","Filter fabric "]
[]
[null,null,"(a) Geotextile filter fabric, Bidium grade A4 or approved "]
[null,null,"equivalent or similar","m²",{"v":50,"d":"50.00"}]
{"$rows_empty":32}
[null,5200,"CARRIED TO SUMMARY"]
[]
[{"$nulls":3},"C2.2.18"]

{"sheet":"5400","index":17,"n_rows":65,"n_cols":7,"rows_kept":65,"merged":[[62,2,62,5]]}
[]
[null,"SCHEDULE B : ROADWORKS"]
[{"$nulls":6},"SECTION 5400"]
[null,"ITEM","DESCRIPTION","UNIT","QTY","RATE","AMOUNT"]
[]
[null,"5400","GUARDRAILS"]
[]
[]
[null,"54.01","Guardrails on timber posts:"]
[]
[null,"(a)","Complete galvinised system compliant to SANS 1350"]
[]
[null,null,"(a) On timber posts","m",{"v":10,"d":"10.00"}]
[]
[null,"54.03","Extra over items 54.01, 54.02 and 54.11 for horizontally curved guardrails factory bent to a radius of less than 45m","m",{"v":10,"d":"10.00"}]
[]
[null,54.04,"End treatments"," "," "]
[null,null,"(ii) End treatments where single guardrail sections are used "]
[null,"(a)","including additional posts) "]
[null,null,"(a) End wings to SANS 1350","No",{"v":5,"d":"5.00"}]
[null,null,"(b) Bull noses to SANS 1350","No.",{"v":5,"d":"5.00"}]
[]
[null,"(d)","End teatments in accordance with the drawings where single"]
[null,null,"guardrail sections are use","no",{"v":4,"d":"4.00"}]
[]
[null,null,"(e) End treatments in accordance with the drawings where double guardrail sections are used","No",{"v":4,"d":"4.00"}]
{"$rows_empty":36}
[null,5400,"CARRIED TO SUMMARY"]
[]
[{"$nulls":3},"C2.2.19"]

{"sheet":"5600","index":18,"n_rows":67,"n_cols":7,"rows_kept":67,"merged":[[64,2,64,5]]}
[]
[null,"SCHEDULE B : ROADWORKS"]
[{"$nulls":6},"SECTION 5600"]
[null,"ITEM","DESCRIPTION","UNIT","QTY","RATE","AMOUNT"]
[]
[null,"5600","ROAD SIGNS"]
[]
[null,56.01,"Road sign boards with painted or coloured semi-matt "]
[null,null,"background.Symbols, lettering and borders in semi-"]
[null,null,"matt black or class 1 retroreflective material, where the"]
[null,null,"sign board is constructed from :"]
[null,null,"All Road Signs to be SANS Compliant"]
[]
[null,null,"(a) Aluminium sheet (2,0 mm thick):"]
[]
[null,null,"(i) Area not exceeding 2 m²","m²",{"v":45,"d":"45.00"}]
[]
[null,56.02,"Extra over item 56.01 for using:"]
[]
[null,null,"(a) Background of retro-reflective material:"]
[]
[null,null,"(i) Class I","m²",{"v":45,"d":"45.00"}]
[]
[null,null,"(b) Lettering Symbols, numbers, arrows, emblems and"]
[null,null,"borders of retro-reflective material:"]
[null,null,"(iii) Class IV (Micro-Prismatic)","m²",{"v":50,"d":"50.00"}]
[]
[null,56.03,"Road sign supports (overhead road sign "]
[null,null,"structures excluded):"]
[]
[null,null,"(b) Timber, 150 mm dia treated with creosote","m",{"v":60,"d":"60.00"}]
[]
[null,56.05,"Excavation and backfilling for road sign "]
[null,null,"supports (not applicable to kilometre posts)","m³",{"v":15,"d":"15.00"}]
[]
[null,56.06,"Extra over item 56.05 for cement-treated soil backfill","m³",{"v":12,"d":"12.00"}]
[]
[null,56.01,"Hazard plates"]
[null,null,"(a) W401","No.",{"v":30,"d":"30.00"}]
{"$rows_empty":25}
[null,5600,"CARRIED TO SUMMARY"]
[]
[{"$nulls":3},"C2.2.20"]

{"sheet":"5700","index":19,"n_rows":67,"n_cols":7,"rows_kept":67,"merged":[[64,2,64,5]]}
[]
[null,"SCHEDULE B : ROADWORKS"]
[{"$nulls":6},"SECTION 5700"]
[null,"ITEM","DESCRIPTION","UNIT","QTY","RATE","AMOUNT"]
[]
[null,"5700","ROAD MARKINGS"]
[]
[null,57.02,"Retro-reflective road marking paint:"]
[null,null,"(a) White line (100mm wide broken or unbroken)","km",{"v":1.7,"d":"1.70"}]
[]
[null,null,"(b) White lettering and symbols","m²",{"v":90,"d":"90.00"}]
[]
[null,57.06,"Setting out and premarking the lines"]
[]
[null,null,"(Excluding traffic island markings, lettering and symbols)","km",{"v":1,"d":"1.00"}]
{"$rows_empty":49}
[null,5700,"CARRIED TO SUMMARY"]
[]
[{"$nulls":3},"C2.2.21"]

{"sheet":"5900","index":20,"n_rows":67,"n_cols":7,"rows_kept":67,"merged":[[64,2,64,5]]}
[]
[null,"SCHEDULE B : ROADWORKS"]
[{"$nulls":6},"SECTION 5900"]
[null,"ITEM","DESCRIPTION","UNIT","QTY","RATE","AMOUNT"]
[]
[null,"5900","FINISHING THE ROAD AND ROAD RESERVE "]
[null,null,"AND TREATING OLD ROADS"]
[]
[null,59.01,"Finishing the road and road reserve:"]
[]
[null,null,"(a) Single-carriageway road","km",{"v":1.7,"d":"1.70"}]
{"$rows_empty":53}
[null,5900,"CARRIED TO SUMMARY"]
[]
[{"$nulls":3},"C2.2.22"]

{"sheet":"7300","index":21,"n_rows":67,"n_cols":7,"rows_kept":67,"merged":[[64,2,64,5]]}
[]
[null,"SCHEDULE B : ROADWORKS"]
[{"$nulls":6},"SECTION 7300"]
[null,"ITEM","DESCRIPTION","UNIT","QTY","RATE","AMOUNT"]
[]
[null,"7300","CONCRETE BLOCK PAVING FOR ROADS"]
[]
[null,73.01,"Concrete Block paving"]
[]
[null,null,"(b) 80mm thick, class 25 interlocking blocks, including 20mm"]
[null,null,"sand bedding","m²",{"v":11000,"d":"11,000.00"}]
[null,null,"(c ) 60mm thick, grade 30MPa interlocking pavers, including "]
[null,null,"20mm sand bedding","m²",{"v":2000,"d":"2,000.00"}]
[]
[null,73.02,"Traffic calming devices"]
[]
[null,null,"Construction of speed humps complete as indicated on the "]
[null,null,"construction drawings including road markings and signs","No.",{"v":15,"d":"15.00"}]
[]
[null,73.03,"Provision of approved herbicide and ant poison"]
[null,null,"(a) provision of materials","L/Sum",{"v":1,"d":"1.00"}]
[null,null,"(b) Contractor's charges and profit added to the Prime Cost "]
[null,null,"Sum","%"]
{"$rows_empty":41}
[null,7300,"CARRIED TO SUMMARY"]
[]
[{"$nulls":3},"C2.2.23"]

{"sheet":"8100","index":22,"n_rows":67,"n_cols":7,"rows_kept":67,"merged":[[64,2,64,5]]}
[]
[null,"SCHEDULE B : ROADWORKS"]
[{"$nulls":6},"SECTION 8100"]
[null,"ITEM","DESCRIPTION","UNIT","QTY","RATE","AMOUNT"]
[]
[null,"8100","TESTING MATERIALS AND WORKMANSHIP"]
[]
[null,81.02,"Other special tests requested by the Engineer:"]
[]
[null,null,"(a) Cost of testing","PC Sum",{"v":1,"d":"1.00"},{"v":25000,"d":"R25,000.00"},{"$f":"F10*E10","v":{"v":25000,"d":"R25,000.00"}}]
[]
[null,null,"(b) Charge on Prime Cost Sum","%",{"v":10,"d":"10.00"},{"$f":"G10","v":{"v":25000,"d":"R25,000.00"}},{"$f":"F12*E12%","v":{"v":2500,"d":"R2,500.00"}}]
{"$rows_empty":52}
[null,8100,"CARRIED TO SUMMARY"]
[]
[{"$nulls":3},"C2.2.24"]

{"sheet":"TRAINING","index":23,"n_rows":67,"n_cols":7,"rows_kept":67,"merged":[[2,5,2,6],[64,2,64,5]]}
[]
[null,"SCHEDULE C : TESTING & PROVISIONAL SUMS"]
[{"$nulls":5},"SECTION TRAINING "]
[null,"ITEM","DESCRIPTION","UNIT","QTY","RATE","AMOUNT"]
[]
[null,"C1","PROVISION OF STRUCTURED TRAINING"]
[]
[null,12.06,"Provision for accredited training:"]
[]
[null,null,"(a)   Generic skills","Prov. Sum",{"v":1,"d":"1.00"},{"v":200000,"d":"R200,000.00"},{"$f":"F10*E10","v":{"v":200000,"d":"R200,000.00"}}]
[]
[null,null,"(b)   Entrepreneurial skills","Prov. Sum",{"v":1,"d":"1.00"},{"v":200000,"d":"R200,000.00"},{"$f":"F12*E12","v":{"v":200000,"d":"R200,000.00"}}]
[]
[null,null,"(c)   Handling cost and profit in respect of sub-"]
[null,null,"       items E12.06(a) and (b) above","%",{"v":10,"d":"10.00"},{"$f":"400000","v":{"v":400000,"d":"R400,000.00"}},{"$f":"F15*E15%","v":{"v":40000,"d":"R40,000.00"}}]
[]
[null,null,"(d)   Training Venue","Lump sum",{"v":1,"d":"1.00"}]
{"$rows_empty":47}
[null,"C1","CARRIED TO SUMMARY"]
[]
[{"$nulls":3},"C2.2.25"]